[Event "Titled Tuesday Blitz February 07 Early 2023"]
[White "Shimanov, Aleksandr"]
[Black "Talibov, Shiroghlan"]
[WhiteFideId "4198603"]
[BlackFideId "13429078"]
[WhiteElo "2581"]
[BlackElo "2359"]
[Result "0-1"]
[Round "08"]
[TimeControl "180+2"]
[Date "2023.02.07"]
[WhiteClock "0:00:04"]
[BlackClock "0:00:07"]

1. e4 {[%clk 0:02:46]}  Nf6 {[%clk 0:02:50]} 2. Nc3 {[%clk 0:02:43]}  d5 {[%clk 0:02:42]} 3. e5 {[%clk 0:02:40]}  Nfd7 {[%clk 0:02:36]} 4. d4 {[%clk 0:02:38]}  c5 {[%clk 0:02:36]} 5. f4 {[%clk 0:02:22]}  cxd4 {[%clk 0:02:31]} 6. Nb5 {[%clk 0:02:19]}  e6 {[%clk 0:02:29]} 7. Nxd4 {[%clk 0:02:16]}  Nc6 {[%clk 0:02:29]} 8. Ngf3 {[%clk 0:02:16]}  a6 {[%clk 0:02:19]} 9. c3 {[%clk 0:02:14]}  Qc7 {[%clk 0:02:16]} 10. Bd3 {[%clk 0:02:13]}  b5 {[%clk 0:02:15]} 11. O-O {[%clk 0:02:10]}  Be7 {[%clk 0:02:11]} 12. Be3 {[%clk 0:02:07]}  Bb7 {[%clk 0:02:02]} 13. Rc1 {[%clk 0:02:04]}  g6 {[%clk 0:02:00]} 14. Kh1 {[%clk 0:02:03]}  h5 {[%clk 0:01:59]} 15. a4 {[%clk 0:01:51]}  Nxd4 {[%clk 0:01:52]} 16. cxd4 {[%clk 0:01:48]}  Qb6 {[%clk 0:01:52]} 17. axb5 {[%clk 0:01:41]}  axb5 {[%clk 0:01:53]} 18. Qe2 {[%clk 0:01:18]}  O-O {[%clk 0:01:47]} 19. Ng5 {[%clk 0:01:11]}  Bxg5 {[%clk 0:01:34]} 20. fxg5 {[%clk 0:01:12]}  Rac8 {[%clk 0:01:31]} 21. Rcd1 {[%clk 0:01:11]}  Rc4 {[%clk 0:01:26]} 22. Rf4 {[%clk 0:01:04]}  b4 {[%clk 0:01:22]} 23. Rdf1 {[%clk 0:01:02]}  Ba6 {[%clk 0:01:14]} 24. Qf2 {[%clk 0:01:01]}  Rcc8 {[%clk 0:00:56]} 25. Bxa6 {[%clk 0:00:23]}  Qxa6 {[%clk 0:00:57]} 26. Rxf7 {[%clk 0:00:23]}  Qd3 {[%clk 0:00:46]} 27. h3 {[%clk 0:00:18]}  Qe4 {[%clk 0:00:31]} 28. Kh2 {[%clk 0:00:17]}  b3 {[%clk 0:00:29]} 29. Kh1 {[%clk 0:00:14]}  Qd3 {[%clk 0:00:25]} 30. Qf3 {[%clk 0:00:12]}  Qc2 {[%clk 0:00:23]} 31. Rf2 {[%clk 0:00:12]}  Qxf2 {[%clk 0:00:19]} 32. Qxf2 {[%clk 0:00:10]}  Rxf7 {[%clk 0:00:19]} 33. Qd2 {[%clk 0:00:11]}  Rc2 {[%clk 0:00:18]} 34. Qd3 {[%clk 0:00:11]}  Nf8 {[%clk 0:00:16]} 35. Qxb3 {[%clk 0:00:11]}  Re2 {[%clk 0:00:14]} 36. Qd3 {[%clk 0:00:11]}  Rxb2 {[%clk 0:00:13]} 37. Kh2 {[%clk 0:00:10]}  Rc7 {[%clk 0:00:11]} 38. Qf1 {[%clk 0:00:06]}  Rcc2 {[%clk 0:00:11]} 39. Qf3 {[%clk 0:00:06]}  Rxg2+ {[%clk 0:00:09]} 40. Qxg2 {[%clk 0:00:07]}  Rxg2+ {[%clk 0:00:10]} 41. Kxg2 {[%clk 0:00:07]}  Kf7 {[%clk 0:00:09]} 42. Kf3 {[%clk 0:00:08]}  Nd7 {[%clk 0:00:08]} 43. Ke2 {[%clk 0:00:08]}  Nb6 {[%clk 0:00:08]} 44. Kd3 {[%clk 0:00:09]}  Ke7 {[%clk 0:00:08]} 45. Kc3 {[%clk 0:00:08]}  Kd7 {[%clk 0:00:08]} 46. Kb4 {[%clk 0:00:08]}  Kc6 {[%clk 0:00:08]} 47. Bf4 {[%clk 0:00:09]}  Nc4 {[%clk 0:00:08]} 48. Bc1 {[%clk 0:00:09]}  Nb6 {[%clk 0:00:07]} 49. Bf4 {[%clk 0:00:09]}  Nc8 {[%clk 0:00:07]} 50. Be3 {[%clk 0:00:08]}  Ne7 {[%clk 0:00:08]} 51. Ka5 {[%clk 0:00:08]}  Nf5 {[%clk 0:00:05]} 52. Bf2 {[%clk 0:00:08]}  Ne7 {[%clk 0:00:05]} 53. Be3 {[%clk 0:00:07]}  Nc8 {[%clk 0:00:05]} 54. Kb4 {[%clk 0:00:06]}  Kb6 {[%clk 0:00:05]} 55. Ka4 {[%clk 0:00:05]}  Ne7 {[%clk 0:00:05]} 56. Kb4 {[%clk 0:00:05]}  Nc6+ {[%clk 0:00:06]} 57. Ka4 {[%clk 0:00:05]}  Na5 {[%clk 0:00:06]} 58. Kb4 {[%clk 0:00:06]}  Nc4 {[%clk 0:00:07]} 59. Bc1 {[%clk 0:00:06]}  Kc6 {[%clk 0:00:07]} 60. Ka4 {[%clk 0:00:04]}  Nb6+ {[%clk 0:00:06]} 61. Kb4 {[%clk 0:00:05]}  Nc8 {[%clk 0:00:05]} 62. Bf4 {[%clk 0:00:05]}  Kb6 {[%clk 0:00:04]} 63. Be3 {[%clk 0:00:05]}  Na7 {[%clk 0:00:05]} 64. Bd2 {[%clk 0:00:05]}  Nc6+ {[%clk 0:00:06]} 65. Kc3 {[%clk 0:00:04]}  Kb5 {[%clk 0:00:06]} 66. Be3 {[%clk 0:00:04]}  Nb4 {[%clk 0:00:05]} 67. Bf2 {[%clk 0:00:04]}  Ka4 {[%clk 0:00:05]} 68. Be3 {[%clk 0:00:04]}  Nc6 {[%clk 0:00:05]} 69. Bf2 {[%clk 0:00:04]}  Na7 {[%clk 0:00:06]} 70. Be3 {[%clk 0:00:02]}  Nb5+ {[%clk 0:00:07]} 71. Kd3 {[%clk 0:00:03]}  Kb4 {[%clk 0:00:08]} 72. Bd2+ {[%clk 0:00:03]}  Kb3 {[%clk 0:00:08]} 73. Be3 {[%clk 0:00:04]}  Na7 {[%clk 0:00:07]} 74. Bd2 {[%clk 0:00:04]}  Nc6 {[%clk 0:00:08]} 75. Ke3 {[%clk 0:00:05]}  Nb4 {[%clk 0:00:08]} 76. Bc1 {[%clk 0:00:05]}  Kc4 {[%clk 0:00:07]} 77. Bb2 {[%clk 0:00:03]}  Nc2+ {[%clk 0:00:07]} 78. Kf4 {[%clk 0:00:01]}  Nxd4 {[%clk 0:00:08]} 79. Ba3 {[%clk 0:00:01]}  Nf5 {[%clk 0:00:08]} 80. Bf8 {[%clk 0:00:02]}  Kd3 {[%clk 0:00:08]} 81. Kf3 {[%clk 0:00:01]}  d4 {[%clk 0:00:08]} 82. Kf2 {[%clk 0:00:02]}  Kc2 {[%clk 0:00:08]} 83. Bb4 {[%clk 0:00:02]}  d3 {[%clk 0:00:09]} 84. Kf3 {[%clk 0:00:02]}  d2 {[%clk 0:00:08]} 85. Bxd2 {[%clk 0:00:03]}  Kxd2 {[%clk 0:00:09]} 86. Ke4 {[%clk 0:00:04]}  Kc3 {[%clk 0:00:07]} 0-1


[Site "https://www.chess.com"]

[Event "Titled Tuesday Blitz February 07 Early 2023"]
[White "Sychev, Klementy"]
[Black "Maximov, Dmitry"]
[WhiteFideId "4114060"]
[BlackFideId "14105659"]
[WhiteElo "2547"]
[BlackElo "2497"]
[Result "1-0"]
[Round "08"]
[TimeControl "180+2"]
[Date "2023.02.07"]
[WhiteClock "0:02:02"]
[BlackClock "0:01:10"]

1. e4 {[%clk 0:03:00]}  c5 {[%clk 0:02:59]} 2. Nf3 {[%clk 0:03:00]}  d6 {[%clk 0:03:00]} 3. d4 {[%clk 0:03:01]}  cxd4 {[%clk 0:03:00]} 4. Nxd4 {[%clk 0:03:02]}  Nf6 {[%clk 0:03:01]} 5. Nc3 {[%clk 0:03:02]}  a6 {[%clk 0:03:02]} 6. Bg5 {[%clk 0:03:03]}  Nbd7 {[%clk 0:03:01]} 7. Bc4 {[%clk 0:03:03]}  Qc7 {[%clk 0:03:00]} 8. Qe2 {[%clk 0:03:02]}  h6 {[%clk 0:02:56]} 9. Bxf6 {[%clk 0:03:02]}  Nxf6 {[%clk 0:02:57]} 10. O-O-O {[%clk 0:03:01]}  e6 {[%clk 0:02:56]} 11. f4 {[%clk 0:03:00]}  Be7 {[%clk 0:02:51]} 12. e5 {[%clk 0:02:57]}  dxe5 {[%clk 0:02:50]} 13. fxe5 {[%clk 0:02:58]}  Nd7 {[%clk 0:02:50]} 14. Bxe6 {[%clk 0:02:56]}  Nxe5 {[%clk 0:02:38]} 15. Nd5 {[%clk 0:02:44]}  Qd6 {[%clk 0:02:29]} 16. Nf5 {[%clk 0:02:42]}  Qb8 {[%clk 0:01:47]} 17. Bxc8 {[%clk 0:02:34]}  Bg5+ {[%clk 0:01:46]} 18. Kb1 {[%clk 0:02:34]}  O-O {[%clk 0:01:43]} 19. h4 {[%clk 0:02:27]}  Bd8 {[%clk 0:01:41]} 20. Rhe1 {[%clk 0:02:20]}  f6 {[%clk 0:01:36]} 21. Nfe7+ {[%clk 0:02:15]}  Kh8 {[%clk 0:01:25]} 22. Bf5 {[%clk 0:02:14]}  Bxe7 {[%clk 0:01:17]} 23. Nxe7 {[%clk 0:02:14]}  Qc7 {[%clk 0:01:18]} 24. Ng6+ {[%clk 0:02:09]}  Nxg6 {[%clk 0:01:18]} 25. Bxg6 {[%clk 0:02:10]}  Rac8 {[%clk 0:01:19]} 26. Qg4 {[%clk 0:02:05]}  Rcd8 {[%clk 0:01:10]} 27. Bf5 {[%clk 0:02:02]} 1-0


[Site "https://www.chess.com"]

[Event "Titled Tuesday Blitz February 07 Early 2023"]
[White "Bachmann, Axel"]
[Black "Salimova, Nurgyul"]
[WhiteFideId "3700488"]
[BlackFideId "2915138"]
[WhiteElo "2604"]
[BlackElo "2391"]
[Result "1-0"]
[Round "08"]
[TimeControl "180+2"]
[Date "2023.02.07"]
[WhiteClock "0:00:44"]
[BlackClock "0:00:01"]

1. e4 {[%clk 0:02:59]}  e5 {[%clk 0:02:56]} 2. Bc4 {[%clk 0:02:59]}  Nf6 {[%clk 0:02:52]} 3. d3 {[%clk 0:02:59]}  c6 {[%clk 0:02:48]} 4. Nf3 {[%clk 0:02:59]}  d5 {[%clk 0:02:47]} 5. Bb3 {[%clk 0:03:00]}  Bd6 {[%clk 0:02:47]} 6. Nc3 {[%clk 0:02:58]}  h6 {[%clk 0:02:29]} 7. exd5 {[%clk 0:02:52]}  cxd5 {[%clk 0:02:29]} 8. Bxd5 {[%clk 0:02:50]}  Nxd5 {[%clk 0:02:27]} 9. Nxd5 {[%clk 0:02:51]}  O-O {[%clk 0:02:09]} 10. Ne3 {[%clk 0:02:45]}  Nc6 {[%clk 0:02:05]} 11. O-O {[%clk 0:02:43]}  f5 {[%clk 0:01:56]} 12. Re1 {[%clk 0:02:37]}  e4 {[%clk 0:01:52]} 13. dxe4 {[%clk 0:02:32]}  fxe4 {[%clk 0:01:50]} 14. Qd5+ {[%clk 0:02:23]}  Kh8 {[%clk 0:01:49]} 15. Qxe4 {[%clk 0:02:24]}  Rf4 {[%clk 0:01:45]} 16. Qd3 {[%clk 0:02:20]}  Rxf3 {[%clk 0:01:21]} 17. gxf3 {[%clk 0:02:21]}  Nd4 {[%clk 0:01:21]} 18. Nc4 {[%clk 0:02:05]}  Bf5 {[%clk 0:01:08]} 19. Re4 {[%clk 0:01:39]}  Bxe4 {[%clk 0:00:52]} 20. Qxe4 {[%clk 0:01:40]}  Rc8 {[%clk 0:00:45]} 21. Nxd6 {[%clk 0:01:30]}  Qxd6 {[%clk 0:00:46]} 22. c3 {[%clk 0:01:30]}  Ne6 {[%clk 0:00:28]} 23. Be3 {[%clk 0:01:27]}  b5 {[%clk 0:00:19]} 24. Re1 {[%clk 0:01:22]}  Rc4 {[%clk 0:00:19]} 25. Qg6 {[%clk 0:01:12]}  Rh4 {[%clk 0:00:16]} 26. f4 {[%clk 0:01:08]}  h5 {[%clk 0:00:12]} 27. f3 {[%clk 0:01:01]}  Qd5 {[%clk 0:00:09]} 28. Bd4 {[%clk 0:00:47]}  Qxf3 {[%clk 0:00:03]} 29. Qh6+ {[%clk 0:00:48]}  Kg8 {[%clk 0:00:03]} 30. Qxe6+ {[%clk 0:00:49]}  Kh7 {[%clk 0:00:02]} 31. Qf5+ {[%clk 0:00:45]}  Kg8 {[%clk 0:00:01]} 32. Re8# {[%clk 0:00:44]} 1-0


[Site "https://www.chess.com"]

[Event "Titled Tuesday Blitz February 07 Early 2023"]
[White "Shipov, Sergei"]
[Black "Madaminov, Mukhiddin"]
[WhiteFideId "4113624"]
[BlackFideId "14210703"]
[WhiteElo "2541"]
[BlackElo "2422"]
[Result "0-1"]
[Round "08"]
[TimeControl "180+2"]
[Date "2023.02.07"]
[WhiteClock "0:00:18"]
[BlackClock "0:00:06"]

1. d4 {[%clk 0:03:00]}  Nf6 {[%clk 0:02:59]} 2. c4 {[%clk 0:02:57]}  g6 {[%clk 0:03:00]} 3. Nc3 {[%clk 0:02:57]}  d5 {[%clk 0:03:01]} 4. Nf3 {[%clk 0:02:56]}  Bg7 {[%clk 0:03:00]} 5. cxd5 {[%clk 0:02:56]}  Nxd5 {[%clk 0:03:00]} 6. Na4 {[%clk 0:02:57]}  Bf5 {[%clk 0:02:35]} 7. Nh4 {[%clk 0:02:55]}  Bc8 {[%clk 0:01:32]} 8. e4 {[%clk 0:02:46]}  Nb6 {[%clk 0:01:33]} 9. Nf3 {[%clk 0:02:45]}  O-O {[%clk 0:01:31]} 10. Be2 {[%clk 0:02:45]}  Nxa4 {[%clk 0:01:21]} 11. Qxa4 {[%clk 0:02:44]}  c5 {[%clk 0:01:22]} 12. dxc5 {[%clk 0:02:43]}  Nd7 {[%clk 0:01:21]} 13. Qa3 {[%clk 0:02:42]}  Qc7 {[%clk 0:01:17]} 14. Be3 {[%clk 0:02:42]}  Nf6 {[%clk 0:01:15]} 15. Nd2 {[%clk 0:02:42]}  Ng4 {[%clk 0:00:52]} 16. Bxg4 {[%clk 0:02:41]}  Bxg4 {[%clk 0:00:53]} 17. O-O {[%clk 0:02:41]}  Rfd8 {[%clk 0:00:53]} 18. Rac1 {[%clk 0:02:34]}  Qc6 {[%clk 0:00:39]} 19. Rfe1 {[%clk 0:02:31]}  h5 {[%clk 0:00:36]} 20. h3 {[%clk 0:02:27]}  Be6 {[%clk 0:00:35]} 21. Nf3 {[%clk 0:02:12]}  Qxe4 {[%clk 0:00:22]} 22. Ng5 {[%clk 0:01:47]}  Qc6 {[%clk 0:00:17]} 23. Nxe6 {[%clk 0:01:46]}  Qxe6 {[%clk 0:00:18]} 24. Bg5 {[%clk 0:01:44]}  Qf5 {[%clk 0:00:15]} 25. Bxe7 {[%clk 0:01:42]}  Rd2 {[%clk 0:00:15]} 26. Qf3 {[%clk 0:01:10]}  Qxf3 {[%clk 0:00:15]} 27. gxf3 {[%clk 0:01:11]}  Bd4 {[%clk 0:00:16]} 28. Bh4 {[%clk 0:01:07]}  Rxb2 {[%clk 0:00:16]} 29. Rb1 {[%clk 0:01:06]}  Rxa2 {[%clk 0:00:11]} 30. Rxb7 {[%clk 0:01:04]}  Bxc5 {[%clk 0:00:12]} 31. Rd1 {[%clk 0:00:57]}  Ra4 {[%clk 0:00:06]} 32. Bf6 {[%clk 0:00:54]}  Rf4 {[%clk 0:00:05]} 33. Bg5 {[%clk 0:00:49]}  Rxf3 {[%clk 0:00:05]} 34. Rdd7 {[%clk 0:00:50]}  Rg3+ {[%clk 0:00:05]} 35. Kf1 {[%clk 0:00:46]}  Rxg5 {[%clk 0:00:06]} 36. Rxf7 {[%clk 0:00:47]}  Bd4 {[%clk 0:00:07]} 37. Rfd7 {[%clk 0:00:44]}  Bf6 {[%clk 0:00:06]} 38. Rd6 {[%clk 0:00:41]}  Rf5 {[%clk 0:00:06]} 39. Ra6 {[%clk 0:00:40]}  h4 {[%clk 0:00:04]} 40. Kg2 {[%clk 0:00:35]}  g5 {[%clk 0:00:04]} 41. Rd7 {[%clk 0:00:28]}  Kf8 {[%clk 0:00:05]} 42. Rb7 {[%clk 0:00:27]}  Re8 {[%clk 0:00:05]} 43. Raxa7 {[%clk 0:00:26]}  Re7 {[%clk 0:00:05]} 44. Rxe7 {[%clk 0:00:24]}  Bxe7 {[%clk 0:00:05]} 45. Ra6 {[%clk 0:00:22]}  Kf7 {[%clk 0:00:06]} 46. f3 {[%clk 0:00:23]}  Rf4 {[%clk 0:00:05]} 47. Rc6 {[%clk 0:00:21]}  Bf6 {[%clk 0:00:06]} 48. Kf2 {[%clk 0:00:20]}  Bd4+ {[%clk 0:00:06]} 49. Ke2 {[%clk 0:00:20]}  Rf5 {[%clk 0:00:06]} 50. Kd3 {[%clk 0:00:20]}  Bg1 {[%clk 0:00:05]} 51. Ke2 {[%clk 0:00:19]}  Bh2 {[%clk 0:00:05]} 52. Ke3 {[%clk 0:00:18]}  Bf4+ {[%clk 0:00:05]} 53. Ke4 {[%clk 0:00:18]}  Re5+ {[%clk 0:00:06]} 54. Kd4 {[%clk 0:00:18]}  Re3 {[%clk 0:00:06]} 0-1


[Site "https://www.chess.com"]

[Event "Titled Tuesday Blitz February 07 Early 2023"]
[White "Bilych, Olexiy"]
[Black "Makarian, Rudik"]
[WhiteFideId "14156504"]
[BlackFideId "44105681"]
[WhiteElo "2441"]
[BlackElo "2545"]
[Result "0-1"]
[Round "08"]
[TimeControl "180+2"]
[Date "2023.02.07"]
[WhiteClock "0:00:02"]
[BlackClock "0:00:06"]

1. d4 {[%clk 0:02:59]}  Nf6 {[%clk 0:03:00]} 2. c4 {[%clk 0:02:57]}  e6 {[%clk 0:03:00]} 3. Nc3 {[%clk 0:02:57]}  Bb4 {[%clk 0:03:00]} 4. e3 {[%clk 0:02:58]}  O-O {[%clk 0:03:00]} 5. Nf3 {[%clk 0:02:58]}  Bxc3+ {[%clk 0:02:59]} 6. bxc3 {[%clk 0:02:58]}  d6 {[%clk 0:03:00]} 7. Bd3 {[%clk 0:02:56]}  e5 {[%clk 0:03:01]} 8. dxe5 {[%clk 0:02:38]}  dxe5 {[%clk 0:03:02]} 9. Nxe5 {[%clk 0:02:37]}  Qe7 {[%clk 0:03:02]} 10. Nf3 {[%clk 0:02:32]}  Rd8 {[%clk 0:03:03]} 11. Qc2 {[%clk 0:02:32]}  Bg4 {[%clk 0:03:03]} 12. Nd4 {[%clk 0:02:26]}  c5 {[%clk 0:03:02]} 13. h3 {[%clk 0:02:09]}  Bh5 {[%clk 0:02:25]} 14. Ne2 {[%clk 0:01:53]}  Rxd3 {[%clk 0:02:08]} 15. Qxd3 {[%clk 0:01:53]}  Nc6 {[%clk 0:02:09]} 16. Nf4 {[%clk 0:01:38]}  Rd8 {[%clk 0:02:04]} 17. Nd5 {[%clk 0:01:39]}  Qe6 {[%clk 0:01:56]} 18. O-O {[%clk 0:01:31]}  Nxd5 {[%clk 0:01:53]} 19. cxd5 {[%clk 0:01:31]}  Rxd5 {[%clk 0:01:54]} 20. Qc4 {[%clk 0:01:27]}  Bf3 {[%clk 0:01:49]} 21. Qf4 {[%clk 0:01:27]}  Rf5 {[%clk 0:01:37]} 22. Qg3 {[%clk 0:01:24]}  Rf6 {[%clk 0:01:26]} 23. e4 {[%clk 0:00:47]}  Ne5 {[%clk 0:01:25]} 24. Bf4 {[%clk 0:00:24]}  Rg6 {[%clk 0:00:50]} 25. Bxe5 {[%clk 0:00:24]}  Rxg3 {[%clk 0:00:50]} 26. Bxg3 {[%clk 0:00:25]}  Bxe4 {[%clk 0:00:44]} 27. Rfe1 {[%clk 0:00:25]}  Qg6 {[%clk 0:00:44]} 28. Rad1 {[%clk 0:00:14]}  h5 {[%clk 0:00:43]} 29. Rd8+ {[%clk 0:00:14]}  Kh7 {[%clk 0:00:44]} 30. h4 {[%clk 0:00:14]}  Bc6 {[%clk 0:00:41]} 31. Re5 {[%clk 0:00:11]}  f6 {[%clk 0:00:41]} 32. Re3 {[%clk 0:00:10]}  Qb1+ {[%clk 0:00:39]} 33. Kh2 {[%clk 0:00:10]}  Qxa2 {[%clk 0:00:38]} 34. Rc8 {[%clk 0:00:09]}  Qd5 {[%clk 0:00:37]} 35. f3 {[%clk 0:00:09]}  Qd2 {[%clk 0:00:32]} 36. Bf4 {[%clk 0:00:09]}  Qc2 {[%clk 0:00:19]} 37. Rc7 {[%clk 0:00:09]}  a5 {[%clk 0:00:19]} 38. Ree7 {[%clk 0:00:05]}  Qg6 {[%clk 0:00:19]} 39. Bd6 {[%clk 0:00:05]}  a4 {[%clk 0:00:19]} 40. Bxc5 {[%clk 0:00:06]}  Kh8 {[%clk 0:00:14]} 41. Rc8+ {[%clk 0:00:06]}  Kh7 {[%clk 0:00:14]} 42. Rcc7 {[%clk 0:00:06]}  Kh8 {[%clk 0:00:11]} 43. Rf7 {[%clk 0:00:07]}  Qf5 {[%clk 0:00:10]} 44. Bd6 {[%clk 0:00:04]}  a3 {[%clk 0:00:09]} 45. Bxa3 {[%clk 0:00:02]}  Qf4+ {[%clk 0:00:09]} 46. Kh3 {[%clk 0:00:02]}  Bxf3 {[%clk 0:00:06]} 0-1


[Site "https://www.chess.com"]

[Event "Titled Tuesday Blitz February 07 Early 2023"]
[White "Kozak, Adam"]
[Black "Beerdsen, Thomas"]
[WhiteFideId "753246"]
[BlackFideId "1030108"]
[WhiteElo "2572"]
[BlackElo "2507"]
[Result "1-0"]
[Round "08"]
[TimeControl "180+2"]
[Date "2023.02.07"]
[WhiteClock "0:00:37"]
[BlackClock "0:01:22"]

1. c4 {[%clk 0:02:53]}  e5 {[%clk 0:02:59]} 2. Nc3 {[%clk 0:02:53]}  Nf6 {[%clk 0:02:59]} 3. Nf3 {[%clk 0:02:53]}  e4 {[%clk 0:02:59]} 4. Ng5 {[%clk 0:02:53]}  c6 {[%clk 0:02:59]} 5. Ngxe4 {[%clk 0:02:51]}  Nxe4 {[%clk 0:03:00]} 6. Nxe4 {[%clk 0:02:52]}  d5 {[%clk 0:03:01]} 7. cxd5 {[%clk 0:02:52]}  cxd5 {[%clk 0:03:02]} 8. Ng3 {[%clk 0:02:52]}  h5 {[%clk 0:03:02]} 9. e3 {[%clk 0:02:52]}  h4 {[%clk 0:03:03]} 10. Ne2 {[%clk 0:02:52]}  Nc6 {[%clk 0:03:03]} 11. d4 {[%clk 0:02:51]}  Qf6 {[%clk 0:03:03]} 12. Nc3 {[%clk 0:02:50]}  Bd6 {[%clk 0:03:04]} 13. h3 {[%clk 0:02:50]}  Qg6 {[%clk 0:03:03]} 14. a3 {[%clk 0:02:42]}  Bf5 {[%clk 0:03:03]} 15. Qf3 {[%clk 0:02:33]}  O-O {[%clk 0:02:57]} 16. Be2 {[%clk 0:02:31]}  Rfe8 {[%clk 0:02:45]} 17. O-O {[%clk 0:02:30]}  Rad8 {[%clk 0:02:40]} 18. Qh5 {[%clk 0:02:27]}  Qe6 {[%clk 0:02:29]} 19. Qxh4 {[%clk 0:02:23]}  Bb8 {[%clk 0:02:20]} 20. Bg4 {[%clk 0:02:10]}  Bxg4 {[%clk 0:02:16]} 21. Qxg4 {[%clk 0:02:09]}  f5 {[%clk 0:02:17]} 22. Qh5 {[%clk 0:01:58]}  Ne7 {[%clk 0:02:08]} 23. f4 {[%clk 0:01:56]}  g6 {[%clk 0:02:04]} 24. Qf3 {[%clk 0:01:56]}  Kf7 {[%clk 0:01:56]} 25. Bd2 {[%clk 0:01:55]}  Ng8 {[%clk 0:01:57]} 26. Rfe1 {[%clk 0:01:49]}  Nf6 {[%clk 0:01:58]} 27. Re2 {[%clk 0:01:50]}  a6 {[%clk 0:01:56]} 28. Be1 {[%clk 0:01:50]}  Rh8 {[%clk 0:01:51]} 29. Rc1 {[%clk 0:01:49]}  Rdg8 {[%clk 0:01:48]} 30. Bg3 {[%clk 0:01:40]}  Bd6 {[%clk 0:01:42]} 31. Rec2 {[%clk 0:01:34]}  Ne4 {[%clk 0:01:43]} 32. Nxe4 {[%clk 0:01:33]}  dxe4 {[%clk 0:01:44]} 33. Qf2 {[%clk 0:01:27]}  g5 {[%clk 0:01:40]} 34. fxg5 {[%clk 0:01:25]}  Rxg5 {[%clk 0:01:40]} 35. Bf4 {[%clk 0:01:09]}  Bxf4 {[%clk 0:01:27]} 36. Qxf4 {[%clk 0:01:10]}  Rhg8 {[%clk 0:01:28]} 37. Rc7+ {[%clk 0:01:00]}  Kg6 {[%clk 0:01:28]} 38. h4 {[%clk 0:00:40]}  Rg4 {[%clk 0:01:27]} 39. h5+ {[%clk 0:00:38]}  Kf6 {[%clk 0:01:22]} 40. Qh6+ {[%clk 0:00:37]} 1-0


[Site "https://www.chess.com"]

[Event "Titled Tuesday Blitz February 07 Early 2023"]
[White "Zhigalko, Sergei"]
[Black "Lianes Garcia, Marcos"]
[WhiteFideId "13502956"]
[BlackFideId "32060777"]
[WhiteElo "2572"]
[BlackElo "2411"]
[Result "1/2-1/2"]
[Round "08"]
[TimeControl "180+2"]
[Date "2023.02.07"]
[WhiteClock "0:00:24"]
[BlackClock "0:01:30"]

1. e4 {[%clk 0:03:00]}  g6 {[%clk 0:02:59]} 2. d4 {[%clk 0:03:00]}  Bg7 {[%clk 0:02:59]} 3. Nc3 {[%clk 0:03:01]}  c5 {[%clk 0:02:59]} 4. dxc5 {[%clk 0:03:01]}  Bxc3+ {[%clk 0:02:59]} 5. bxc3 {[%clk 0:03:02]}  Qa5 {[%clk 0:02:59]} 6. Qd4 {[%clk 0:02:59]}  Nf6 {[%clk 0:03:00]} 7. Qb4 {[%clk 0:02:58]}  Qc7 {[%clk 0:02:59]} 8. Nf3 {[%clk 0:02:57]}  Nc6 {[%clk 0:02:59]} 9. Qa4 {[%clk 0:02:56]}  Ne5 {[%clk 0:02:59]} 10. Be3 {[%clk 0:02:52]}  Neg4 {[%clk 0:03:00]} 11. Qd4 {[%clk 0:02:46]}  e5 {[%clk 0:02:51]} 12. Qd3 {[%clk 0:02:41]}  Nxe3 {[%clk 0:02:51]} 13. Qxe3 {[%clk 0:02:42]}  Ng4 {[%clk 0:02:51]} 14. Qd2 {[%clk 0:02:32]}  Qxc5 {[%clk 0:02:50]} 15. Bd3 {[%clk 0:02:22]}  d6 {[%clk 0:02:49]} 16. O-O {[%clk 0:02:22]}  Be6 {[%clk 0:02:43]} 17. Rfb1 {[%clk 0:02:12]}  b6 {[%clk 0:02:41]} 18. a4 {[%clk 0:02:11]}  Rc8 {[%clk 0:02:36]} 19. a5 {[%clk 0:02:07]}  O-O {[%clk 0:02:17]} 20. axb6 {[%clk 0:01:54]}  axb6 {[%clk 0:02:17]} 21. Ra6 {[%clk 0:01:52]}  Qxc3 {[%clk 0:01:52]} 22. Qxc3 {[%clk 0:01:18]}  Rxc3 {[%clk 0:01:53]} 23. h3 {[%clk 0:01:18]}  Nf6 {[%clk 0:01:49]} 24. Rbxb6 {[%clk 0:01:09]}  Bc4 {[%clk 0:01:30]} 25. Bxc4 {[%clk 0:00:59]}  Rxc4 {[%clk 0:01:31]} 26. Rxd6 {[%clk 0:01:00]}  Nxe4 {[%clk 0:01:31]} 27. Rdc6 {[%clk 0:01:00]}  Rc8 {[%clk 0:01:31]} 28. Rxc4 {[%clk 0:00:24]}  Rxc4 {[%clk 0:01:30]} 1/2-1/2


[Site "https://www.chess.com"]

[Event "Titled Tuesday Blitz February 07 Early 2023"]
[White "Pakleza, Zbigniew"]
[Black "Dehtiarov, Roman"]
[WhiteFideId "1119290"]
[BlackFideId "14186640"]
[WhiteElo "2494"]
[BlackElo "2289"]
[Result "0-1"]
[Round "08"]
[TimeControl "180+2"]
[Date "2023.02.07"]
[WhiteClock "0:00:03"]
[BlackClock "0:00:03"]

1. d4 {[%clk 0:03:00]}  Nf6 {[%clk 0:02:57]} 2. Nf3 {[%clk 0:03:00]}  d5 {[%clk 0:02:56]} 3. Bf4 {[%clk 0:03:00]}  c5 {[%clk 0:02:55]} 4. c3 {[%clk 0:03:01]}  Nc6 {[%clk 0:02:55]} 5. Nbd2 {[%clk 0:03:02]}  Qb6 {[%clk 0:02:55]} 6. Qb3 {[%clk 0:03:02]}  c4 {[%clk 0:02:54]} 7. Qc2 {[%clk 0:03:02]}  Nh5 {[%clk 0:02:54]} 8. Bg3 {[%clk 0:02:59]}  g6 {[%clk 0:02:54]} 9. e4 {[%clk 0:02:58]}  e6 {[%clk 0:02:51]} 10. Be2 {[%clk 0:02:52]}  Nxg3 {[%clk 0:02:50]} 11. hxg3 {[%clk 0:02:53]}  Bg7 {[%clk 0:02:50]} 12. O-O {[%clk 0:02:51]}  O-O {[%clk 0:02:50]} 13. Rfe1 {[%clk 0:02:52]}  Bd7 {[%clk 0:02:50]} 14. Rab1 {[%clk 0:02:39]}  Rac8 {[%clk 0:02:48]} 15. Nf1 {[%clk 0:02:36]}  Qc7 {[%clk 0:02:45]} 16. exd5 {[%clk 0:02:23]}  exd5 {[%clk 0:02:46]} 17. Ne3 {[%clk 0:02:24]}  Be6 {[%clk 0:02:43]} 18. Ng5 {[%clk 0:02:18]}  Qe7 {[%clk 0:02:38]} 19. Nh3 {[%clk 0:02:09]}  Bh6 {[%clk 0:02:31]} 20. Nf4 {[%clk 0:02:02]}  Qd6 {[%clk 0:02:27]} 21. Bf3 {[%clk 0:01:38]}  Ne7 {[%clk 0:02:13]} 22. Qd2 {[%clk 0:01:22]}  b5 {[%clk 0:01:46]} 23. a3 {[%clk 0:01:21]}  a5 {[%clk 0:01:44]} 24. Ra1 {[%clk 0:01:14]}  Bxf4 {[%clk 0:01:39]} 25. gxf4 {[%clk 0:01:14]}  h5 {[%clk 0:01:40]} 26. g3 {[%clk 0:01:10]}  b4 {[%clk 0:01:35]} 27. axb4 {[%clk 0:01:01]}  axb4 {[%clk 0:01:35]} 28. Ra5 {[%clk 0:01:02]}  bxc3 {[%clk 0:01:30]} 29. bxc3 {[%clk 0:01:03]}  Rb8 {[%clk 0:01:24]} 30. f5 {[%clk 0:00:53]}  Nxf5 {[%clk 0:01:17]} 31. Nxf5 {[%clk 0:00:53]}  Bxf5 {[%clk 0:01:14]} 32. Rxd5 {[%clk 0:00:51]}  Qf6 {[%clk 0:01:11]} 33. Qf4 {[%clk 0:00:46]}  Rfe8 {[%clk 0:00:53]} 34. Rxe8+ {[%clk 0:00:43]}  Rxe8 {[%clk 0:00:54]} 35. Rc5 {[%clk 0:00:26]}  Re1+ {[%clk 0:00:22]} 36. Kg2 {[%clk 0:00:26]}  Qe7 {[%clk 0:00:06]} 37. Rxc4 {[%clk 0:00:19]}  Bd3 {[%clk 0:00:05]} 38. Rc7 {[%clk 0:00:14]}  Qe6 {[%clk 0:00:05]} 39. Kh2 {[%clk 0:00:08]}  Bf1 {[%clk 0:00:03]} 40. Qh4 {[%clk 0:00:07]}  Be2 {[%clk 0:00:02]} 41. Bg2 {[%clk 0:00:06]}  Bf1 {[%clk 0:00:02]} 42. d5 {[%clk 0:00:06]}  Qe5 {[%clk 0:00:02]} 43. Qd8+ {[%clk 0:00:05]}  Kg7 {[%clk 0:00:02]} 44. d6 {[%clk 0:00:02]}  Bxg2 {[%clk 0:00:02]} 45. Rc8 {[%clk 0:00:01]}  Rh1+ {[%clk 0:00:02]} 46. Kxg2 {[%clk 0:00:01]}  Qe4+ {[%clk 0:00:02]} 47. f3 {[%clk 0:00:02]}  Qe2+ {[%clk 0:00:02]} 48. Kxh1 {[%clk 0:00:02]}  Qf1+ {[%clk 0:00:03]} 49. Kh2 {[%clk 0:00:03]}  Qf2+ {[%clk 0:00:03]} 0-1


[Site "https://www.chess.com"]